bitfinex-derivatives/quotes_SOLF0:USTF0_20250520
["timestamp","ask_amount","ask_price","bid_price","bid_amount"]
[1747773891341,0.04060847,168.06,168.04,94.68]
[1747773892637,0.04060847,168.06,168.05,5.9482]
[1747773896639,0.04060847,168.06,168.04,100.6285]
[1747773897247,0.04060847,168.06,168.05,5.9482]
[1747773900942,5.9451,168.14,168.11,5.9461]
[1747773901142,98.282,168.16,168.06,9.89133829]
[1747773901347,98.282,168.16,168.07,5.9474]
[1747773901655,5.9468,168.09,168.07,5.9474]
[1747773901858,0.04490644,168.1,168.08,5.947]
[1747773902157,0.04470059,168.11,168.08,5.947]
[1747773902548,5.99100059,168.11,168.08,5.947]
[1747773902749,0.04470059,168.11,168.07,0.03762535]
[1747773903249,0.04470059,168.11,168.08,94.4]
[1747773903452,0.04470059,168.11,168.1,5.9465]
[1747773905374,5.9445,168.16,168.14,5.945]
[1747773905561,211.04568844,168.19,168.09,9.89133829]
[1747773905956,116.64568844,168.19,168.09,9.89133829]
[1747773906349,0.04311583,168.16,168.12,0.04369823]
[1747773906553,0.04311583,168.16,168.13,94.4]
[1747773907054,5.98771583,168.16,168.13,100.3452]
[1747773907257,0.04311583,168.16,168.13,94.4]
[1747773907467,0.04311583,168.16,168.12,0.04369823]
[1747773907861,5.9454,168.13,168.12,0.04369823]
[1747773909768,5.9451,168.14,168.12,0.04369823]
[1747773910370,5.9448,168.15,168.12,5.98939823]
[1747773910769,0.04311583,168.16,168.12,0.04369823]
[1747773912163,5.9453,168.14,168.12,0.04369823]
[1747773912763,5.9453,168.14,168.12,5.98939823]
[1747773912964,5.9449,168.15,168.12,5.98939823]
[1747773913358,0.04311583,168.16,168.12,5.98939823]
[1747773914165,0.04311583,168.16,168.12,0.04369823]
[1747773914372,5.9451,168.14,168.12,0.04369823]
[1747773915172,5.9449,168.15,168.12,5.98939823]
[1747773915371,5.9449,168.15,168.12,0.04369823]
[1747773915575,0.04311583,168.16,168.12,94.42369823]
[1747773915776,0.04311583,168.16,168.15,5.9447]
[1747773916069,94.38,168.28,168.15,9.89133829]
[1747773916270,98.3885,168.28,168.16,94.38]
[1747773916471,98.3885,168.28,168.21,5.9426]
[1747773916671,98.3885,168.28,168.16,96.4556]
[1747773917075,5.9862887,168.24,168.21,5.9423]
[1747773917463,0.0445887,168.24,168.22,5.942]
[1747773917774,0.0445887,168.24,168.21,94.38]
[1747773917974,0.0445887,168.24,168.23,5.9419]
[1747773918368,0.0445887,168.24,168.21,94.38]
[1747773919367,0.0445887,168.24,168.22,5.9422]
[1747773920278,0.0445887,168.24,168.23,5.9419]
[1747773922179,0.0445887,168.24,168.22,5.9422]
[1747773923275,4.1271,168.32,168.21,94.38]
[1747773923479,4.1271,168.32,168.22,9.89133829]
[1747773923680,5.9394,168.3,168.26,5.9405]
[1747773923979,5.9394,168.3,168.26,94.1]
[1747773924178,5.98341544,168.3,168.27,5.9402]
[1747773924375,0.04401544,168.3,168.26,94.1422047]
[1747773925775,0.04401544,168.3,168.29,5.9398]
[1747773926081,0.04401544,168.3,168.26,96.1778047]
[1747773926680,0.04401544,168.3,168.27,5.9404]
[1747773926880,0.04401544,168.3,168.26,96.1778047]
[1747773927176,0.04401544,168.3,168.29,5.9398]
[1747773927369,0.04401544,168.3,168.26,96.1778047]
[1747773927781,0.04401544,168.3,168.26,94.1422047]
[1747773929683,5.9398,168.29,168.26,100.0827047]
[1747773929979,0.04401544,168.3,168.26,94.1422047]
[1747773930180,0.04401544,168.3,168.28,5.9401]
[1747773930482,0.04401544,168.3,168.26,104.03354299]
[1747773930694,94.08,168.37,168.27,1.9606]
[1747773930870,4.0518,168.38,168.32,5.9384]
[1747773930871,5.9374,168.36,168.32,5.9384]
[1747773931071,5.9374,168.36,168.31,94.08]
[1747773931681,0.04358404,168.35,168.32,0.04111343]
[1747773932279,4.0076,168.42,168.32,9.93245172]
[1747773932681,4.0076,168.42,168.32,0.04111343]
[1747773933083,5.9375,168.36,168.32,0.04111343]
[1747773933281,0.03520025,168.36,168.32,0.04111343]
[1747773934677,0.03520025,168.36,168.32,9.93245172]
[1747773934879,284.97567971,168.43,168.32,9.93245172]
[1747773935080,94.04,168.47,168.35,9.89133829]
[1747773935280,100.0692,168.5,168.38,9.89133829]
[1747773935478,100.0692,168.5,168.39,94.04]
[1747773935685,9.89133829,168.48,168.39,94.04]
[1747773935885,9.89133829,168.48,168.42,0.04121348]
[1747773936384,5.9348,168.43,168.42,0.04121348]
[1747773939992,5.9344,168.45,168.42,0.04121348]
[1747773940290,94.04,168.49,168.42,0.04121348]
[1747773940484,5.9331,168.48,168.42,0.04121348]
[1747773940686,607.44,168.52,168.42,0.04121348]
[1747773940883,94.02,168.53,168.42,1.96601348]
[1747773941192,4.0278,168.54,168.46,0.0394856]
[1747773941595,9.9588,168.54,168.5,5.9321]
[1747773941894,95.9807,168.59,168.5,0.04175023]
[1747773942287,5.9299,168.57,168.52,5.9316]
[1747773942486,5.9299,168.57,168.53,0.04499861]
[1747773942999,5.9303,168.56,168.53,0.04499861]
[1747773943201,105.87203829,168.59,168.53,0.04499861]
[1747773943494,9.89133829,168.56,168.45,93.98]
[1747773943687,95.9415,168.55,168.45,93.98]
[1747773943886,5.9323,168.51,168.45,99.914]
[1747773944187,9.89133829,168.53,168.42,1.9248]
[1747773944493,0.04221024,168.49,168.46,0.04505615]
[1747773944899,5.9335,168.47,168.46,0.04505615]
[1747773947195,5.97521024,168.49,168.46,0.04505615]
[1747773947387,0.04221024,168.49,168.46,0.04505615]
[1747773947698,5.9331,168.48,168.46,0.04505615]
[1747773948292,0.04221024,168.49,168.46,5.97845615]
[1747773948592,0.04221024,168.49,168.46,0.04505615]
[1747773949694,5.97491024,168.49,168.46,0.04505615]
[1747773950397,0.04221024,168.49,168.46,0.04505615]
[1747773950597,0.04221024,168.49,168.46,94.02505615]
[1747773951902,0.04221024,168.49,168.47,5.9334]
[1747773952089,0.04221024,168.49,168.46,94.02505615]
[1747773952697,0.04221024,168.49,168.46,0.04505615]
[1747773953213,5.9331,168.48,168.46,0.04505615]
[1747773953605,0.04221024,168.49,168.46,0.04505615]
[1747773953992,5.9334,168.47,168.46,0.04505615]
[1747773954302,0.04221024,168.49,168.46,0.04505615]
[1747773954600,5.9332,168.48,168.46,0.04505615]
[1747773954806,0.04221024,168.49,168.46,0.04505615]
[1747773955303,0.04221024,168.49,168.47,5.9334]
[1747773956397,0.04221024,168.49,168.46,5.97865615]
[1747773958004,5.97501024,168.49,168.46,0.04505615]
[1747773958190,0.04221024,168.49,168.46,0.04505615]
[1747773958501,5.9334,168.47,168.46,0.04505615]
[1747773959001,5.9332,168.48,168.46,0.04505615]
[1747773959199,0.04221024,168.49,168.46,0.04505615]
[1747773959607,0.04221024,168.49,168.47,5.9334]
[1747773960416,0.04221024,168.49,168.48,5.9331]
[1747773961299,2.0013,168.58,168.47,95.7575]
[1747773961300,95.7813,168.58,168.47,95.7575]
[1747773961503,95.7813,168.58,168.47,97.77]
[1747773961693,5.9305,168.56,168.52,5.9314]
[1747773961903,2.0013,168.58,168.51,93.78]
[1747773962208,2.0013,168.58,168.47,3.99]
[1747773962209,93.78,168.61,168.53,0.040216]
[1747773962499,5.9293,168.59,168.55,5.9305]
[1747773962706,1.9089,168.62,168.53,0.040216]
[1747773962904,1.975,168.63,168.53,0.040216]
[1747773963106,5.9286,168.61,168.57,5.9296]
[1747773963301,1.975,168.63,168.57,5.97306523]
[1747773963605,5.9287,168.61,168.57,5.97306523]
[1747773963797,1.975,168.63,168.57,0.04346523]
[1747773964305,5.9295,168.58,168.57,0.04346523]
[1747773964699,93.76,168.6,168.48,1.9283]
[1747773965008,2.0749,168.59,168.48,93.76]
[1747773965807,0.04182802,168.55,168.52,0.03817816]
[1747773966006,0.04182802,168.55,168.52,7.816e-05]
[1747773966307,5.9313,168.53,168.52,7.816e-05]
[1747773974013,5.9311,168.54,168.52,7.816e-05]
[1747773974514,5.9313,168.53,168.52,7.816e-05]
[1747773974906,97.88852802,168.55,168.52,7.816e-05]
[1747773975111,93.80182802,168.55,168.52,7.816e-05]
[1747773975713,5.9313,168.53,168.52,7.816e-05]
[1747773979318,5.9338,168.46,168.44,93.76]
[1747773979717,93.76,168.51,168.44,93.76]
[1747773980220,0.04320284,168.49,168.46,0.03943553]
[1747773980419,5.97590284,168.49,168.46,0.03943553]
[1747773981812,5.97590284,168.49,168.46,5.97323553]
[1747773982416,5.97590284,168.49,168.47,5.9333]
[1747773982417,0.04320284,168.49,168.47,5.9333]
[1747773983432,0.04320284,168.49,168.46,5.97303553]
[1747773983632,5.97610284,168.49,168.46,0.03943553]
[1747773983915,0.04320284,168.49,168.46,0.03943553]
[1747773984123,5.9334,168.47,168.46,0.03943553]
[1747773984324,0.04320284,168.49,168.46,0.03943553]
[1747773984622,5.9333,168.48,168.46,0.03943553]
[1747773985225,5.9334,168.47,168.46,0.03943553]
[1747773985823,5.9332,168.48,168.46,0.03943553]
[1747773986023,0.04320284,168.49,168.46,0.03943553]
[1747773987538,5.9334,168.47,168.46,0.03943553]
[1747773987724,0.04320284,168.49,168.46,0.03943553]
[1747773988225,5.9334,168.47,168.46,0.03943553]
[1747773988821,5.9334,168.47,168.46,3.553e-05]
[1747773993635,5.9332,168.48,168.46,3.553e-05]
[1747773993833,0.04320284,168.49,168.46,3.553e-05]
[1747773994131,5.9334,168.47,168.46,3.553e-05]
[1747773995429,0.04320284,168.49,168.46,3.553e-05]
[1747773995816,5.97590284,168.49,168.46,3.553e-05]
[1747773997333,0.04320284,168.49,168.46,3.553e-05]
[1747773997935,5.9334,168.47,168.46,3.553e-05]
[1747773999822,99.6134,168.47,168.46,3.553e-05]
[1747774013640,93.68,168.47,168.36,7.8443]
[1747774013838,93.68,168.47,168.36,1.9073]
[1747774013839,9.83530822,168.46,168.36,1.9073]
[1747774014341,9.83530822,168.43,168.33,1.31217678]
[1747774014648,0.04559376,168.4,168.36,0.04370824]
[1747774015139,5.9369,168.37,168.36,0.04370824]
[1747774019739,0.04559376,168.4,168.36,0.04370824]
[1747774020549,5.9364,168.39,168.36,0.04370824]
[1747774020748,0.04559376,168.4,168.36,0.04370824]
[1747774021655,0.04559376,168.4,168.36,93.70370824]
[1747774021859,0.04559376,168.4,168.39,5.9362]
[1747774022164,10.98123751,168.45,168.39,9.83530822]
[1747774022346,10.98123751,168.45,168.4,93.66]
[1747774022549,108.30165002,168.5,168.42,9.83530822]
[1747774022849,11.05863698,168.5,168.42,9.83530822]
[1747774023051,0.04474131,168.48,168.44,0.03872089]
[1747774023251,0.04474131,168.48,168.44,93.69872089]
[1747774023654,0.04474131,168.48,168.47,5.9334]
[1747774024357,0.04474131,168.48,168.46,5.9335]
[1747774024557,0.04474131,168.48,168.44,93.69872089]
[1747774026464,5.97804131,168.48,168.44,93.69872089]
[1747774027061,0.04474131,168.48,168.45,5.9341]
[1747774029062,0.04474131,168.48,168.47,5.9334]
[1747774029256,116.39210488,168.57,168.45,2.0733]
[1747774029454,116.39210488,168.57,168.45,6.2367]
[1747774029659,116.39210488,168.57,168.45,21.96066922]
[1747774030374,0.03353222,168.53,168.49,0.03820565]
[1747774030666,0.03353222,168.53,168.52,5.9315]
[1747774032460,5.9293,168.59,168.52,11.8715]
[1747774032669,93.62,168.62,168.56,5.9301]
[1747774032865,5.9287,168.61,168.54,93.62]
[1747774033067,606.64,168.65,168.56,5.93]
[1747774033559,5.9291,168.6,168.58,0.04534319]
[1747774033962,606.64,168.65,168.58,0.04534319]
[1747774034559,93.62,168.65,168.6,5.9288]
[1747774034765,93.62,168.65,168.58,0.04534319]
[1747774035164,5.9286,168.61,168.58,0.04534319]
[1747774035468,93.62,168.65,168.58,0.04534319]
[1747774035666,5.9291,168.6,168.58,0.04534319]
[1747774035871,93.62,168.65,168.58,0.04534319]
[1747774036170,5.928,168.63,168.58,5.97484319]
[1747774036363,93.58,168.65,168.58,0.04534319]
[1747774038266,5.9278,168.63,168.58,0.04534319]
[1747774038469,93.58,168.65,168.58,0.04534319]
[1747774038665,5.9284,168.62,168.58,0.04534319]
[1747774038971,93.58,168.65,168.58,0.04534319]
[1747774039270,93.58,168.65,168.58,5.97484319]
[1747774039464,93.58,168.65,168.58,0.04534319]
[1747774039668,116.33853267,168.67,168.59,93.58]
[1747774040161,5.9273,168.65,168.61,5.9283]
[1747774040361,5.9273,168.65,168.61,5.96903885]
[1747774040557,5.927,168.66,168.62,5.9278]
[1747774040761,1.9459,168.7,168.61,0.04073885]
[1747774041174,1.9459,168.7,168.61,93.62073885]
[1747774041766,5.9275,168.64,168.61,93.62073885]
[1747774042172,5.9275,168.64,168.61,0.04073885]
[1747774042364,5.9278,168.63,168.61,0.04073885]
[1747774043273,5.9275,168.64,168.61,0.04073885]
[1747774043779,5.9271,168.65,168.61,0.04073885]
[1747774043970,1.986,168.69,168.61,0.04073885]
[1747774045375,5.9274,168.64,168.61,0.04073885]
[1747774045871,93.48,168.67,168.61,0.04073885]
[1747774046074,1.986,168.69,168.61,0.04073885]
[1747774046276,95.4259,168.7,168.61,0.04073885]
[1747774046473,5.9257,168.69,168.66,5.9267]
[1747774046680,93.48,168.73,168.66,0.04294652]
[1747774047372,15.72396922,168.72,168.66,0.04294652]
[1747774047775,9.81434199,168.7,168.59,93.48]
[1747774048274,18.30206252,168.92,168.74,9.78506337]
[1747774048574,15.76966337,168.9,168.75,102.4]
[1747774048777,0.04205585,168.83,168.8,0.03818288]
[1747774049376,102.44205585,168.83,168.8,0.03818288]
[1747774049576,2.0804,168.82,168.8,0.03818288]
[1747774049978,11.87727817,168.82,168.73,102.4]
[1747774050295,3.998,168.81,168.73,102.4]
[1747774051080,0.04156799,168.79,168.75,0.03967864]
[1747774052769,1.031432,168.91,168.76,102.38]
[1747774052977,102.38,168.9,168.74,102.38]
[1747774053178,102.38,168.89,168.74,102.38]
[1747774053683,5.9198,168.86,168.79,5.9219]
[1747774053881,0.03805179,168.84,168.81,0.04484273]
[1747774054286,104.41715179,168.84,168.81,0.04484273]
[1747774055379,0.03805179,168.84,168.81,0.04484273]
[1747774056384,0.03805179,168.84,168.83,5.9208]
[1747774056889,0.03805179,168.84,168.82,5.9211]
[1747774057079,0.03805179,168.84,168.81,0.04484273]
[1747774057290,0.03805179,168.84,168.81,15.70597233]
[1747774057478,1.9828,168.93,168.81,0.04484273]
[1747774057679,1.9828,168.93,168.8,102.32]
[1747774057680,1.9828,168.93,168.8,117.9811296]
[1747774057877,1.9828,168.93,168.82,15.6611296]
[1747774058580,1.9828,168.93,168.86,0.03950618]
[1747774058780,4.0977,168.94,168.86,15.70063578]
[1747774058980,4.0977,168.94,168.91,5.9179]
[1747774059181,4.0977,168.94,168.91,0.0405691]
[1747774060185,5.9176,168.93,168.91,0.0405691]
[1747774061288,4.0977,168.94,168.91,0.0405691]
[1747774061486,4.0977,168.94,168.85,102.32]
[1747774061987,5.9182,168.91,168.86,5.9194]
[1747774062283,4.0977,168.94,168.85,102.32]
[1747774062586,5.95918804,168.91,168.88,0.03813299]
[1747774062787,0.04118804,168.91,168.88,0.03813299]
[1747774063589,0.04118804,168.91,168.88,5.95703299]
[1747774064087,5.95938804,168.91,168.88,0.03813299]
[1747774064388,0.04118804,168.91,168.88,0.03813299]
[1747774064693,0.04118804,168.91,168.88,15.69926259]
[1747774065488,0.04118804,168.91,168.89,5.9187]
[1747774065692,0.04118804,168.91,168.88,0.03813299]
[1747774069492,102.26,169.04,168.88,21.61926259]
[1747774069694,108.0126,169.04,168.92,15.6611296]
[1747774070000,108.0126,169.04,168.92,117.9211296]
[1747774070291,113.9261,169.04,169.0,5.9147]
[1747774070488,108.0126,169.04,169.0,0.04431548]
[1747774071290,113.9326,169.04,168.86,102.26]
[1747774071487,108.0126,169.04,168.89,15.6611296]
[1747774071686,5.7526,169.04,168.89,15.6611296]
[1747774071890,5.7526,169.04,168.88,15.6611296]
[1747774071891,5.7526,169.04,168.93,15.6611296]
[1747774072090,5.7526,169.04,168.94,102.26]
[1747774072288,0.04116182,169.01,168.97,0.04091436]
[1747774072597,3.8297,169.04,168.97,15.70204396]
[1747774072787,102.22,169.11,168.97,0.04091436]
[1747774072986,5.9118,169.09,168.96,15.9633296]
[1747774073189,102.22,169.11,168.96,0.3022]
[1747774073391,102.22,169.11,168.99,15.6611296]
[1747774073598,5.9123,169.08,169.03,5.9137]
[1747774073897,102.22,169.11,169.04,0.0424101]
[1747774074186,5.9126,169.07,169.04,0.0424101]
[1747774074391,102.22,169.11,169.04,0.0424101]
[1747774075793,5.9131,169.05,169.04,0.0424101]
[1747774076495,102.22,169.11,169.0,102.22]
[1747774077001,102.22,169.11,168.96,102.2]
[1747774077191,15.6611296,169.09,168.95,102.2]
[1747774077402,0.04401735,169.05,169.02,0.0409421]
[1747774077602,5.9151,169.0,168.95,102.2]
[1747774078095,104.1912,169.04,168.95,102.2]
[1747774078488,5.95581096,169.01,168.98,0.03762266]
[1747774078992,0.04131096,169.01,168.98,0.03762266]
[1747774079803,103.44,169.15,168.98,0.03762266]
[1747774080001,1.9622,169.11,168.97,15.6611296]
[1747774080291,5.9125,169.07,169.02,5.9138]
[1747774080495,1.9622,169.11,169.01,103.44]
[1747774080697,5.9124,169.07,169.04,0.0426659]
[1747774080994,0.04519491,169.08,169.04,0.0426659]
[1747774081203,5.9131,169.05,169.04,0.0426659]
[1747774081386,2.0195,169.07,168.97,103.44]
[1747774082189,5.9141,169.03,168.97,109.3556]
[1747774082400,0.03930008,169.02,168.98,0.0455904]
[1747774082794,0.03930008,169.02,168.99,5.9151]
[1747774082998,0.03930008,169.02,168.98,0.0455904]
[1747774083200,0.03930008,169.02,168.99,5.9151]
[1747774083800,0.03930008,169.02,168.98,5.9610904]
[1747774083995,0.03930008,169.02,168.98,0.0455904]
[1747774084403,0.03930008,169.02,168.99,5.9149]
[1747774084798,0.03930008,169.02,168.98,0.0455904]
[1747774085000,0.03930008,169.02,168.99,5.9151]
[1747774085398,0.03930008,169.02,169.0,5.9148]
[1747774085803,0.03930008,169.02,168.98,0.0455904]
[1747774088006,0.03930008,169.02,169.0,5.9146]
[1747774089009,0.03930008,169.02,168.99,5.915]
[1747774089303,0.03930008,169.02,168.98,0.0455904]
[1747774089607,0.03930008,169.02,168.98,5.9609904]
[1747774089815,0.03930008,169.02,168.98,0.0455904]
[1747774090308,0.03930008,169.02,168.99,5.9149]
[1747774090715,0.03930008,169.02,168.98,0.0455904]
[1747774091808,5.9145,169.01,168.98,0.0455904]
[1747774092210,103.42,169.0,168.89,103.42]
[1747774092423,2.0807,169.04,168.9,15.6611296]
[1747774092618,1.9653,169.03,168.9,15.6611296]
[1747774092822,5.9147,169.01,168.9,15.6611296]
[1747774093018,1.9653,169.03,168.9,15.6611296]
[1747774093223,0.04426347,168.98,168.95,0.03764335]
[1747774093419,0.04426347,168.98,168.96,5.916]
[1747774093717,0.04426347,168.98,168.95,0.03764335]
[1747774095621,0.04426347,168.98,168.97,5.9159]
[1747774097717,103.42,169.12,169.03,5.9136]
[1747774097925,4.0327,169.11,169.0,103.42]
[1747774098128,5.9115,169.1,169.0,103.42]
[1747774098722,4.0327,169.11,169.0,103.42]
[1747774099022,4.0327,169.11,169.07,5.9122]
[1747774099222,4.07630716,169.11,169.04,0.0402333]
[1747774099619,5.9114,169.1,169.05,5.9128]
[1747774099827,5.9114,169.1,169.04,0.0402333]
[1747774100226,0.04360716,169.11,169.04,0.0402333]
[1747774100625,5.95460716,169.11,169.06,5.9127]
[1747774101218,5.95460716,169.11,169.07,5.9121]
[1747774101828,0.04360716,169.11,169.07,5.9121]
[1747774102313,0.04360716,169.11,169.05,103.4]
[1747774103127,5.95480716,169.11,169.06,5.9125]
[1747774103328,5.95480716,169.11,169.05,103.4]
[1747774103926,0.04360716,169.11,169.07,5.9123]
[1747774104627,0.04360716,169.11,169.06,5.9126]
[1747774104827,0.04360716,169.11,169.05,103.4]
[1747774105131,0.04360716,169.11,169.06,5.9126]
[1747774106021,5.95460716,169.11,169.05,109.313]
[1747774106217,5.95460716,169.11,169.05,103.4]
[1747774106527,0.04360716,169.11,169.06,5.9125]
[1747774107345,0.04360716,169.11,169.05,109.313]
[1747774107633,5.9123,169.08,169.04,0.0402333]
[1747774108328,2.0437,169.1,169.04,0.0402333]
[1747774108329,5.9129,169.06,169.04,0.0402333]
[1747774108633,2.11301792,169.07,169.04,0.0402333]
[1747774111840,0.04261792,169.07,169.04,0.0402333]
[1747774112432,0.04261792,169.07,169.04,5.9535333]
[1747774113345,0.04261792,169.07,169.04,0.0402333]
[1747774113547,0.04261792,169.07,169.05,101.94]
[1747774113732,5.9096,169.15,169.05,101.94]
[1747774113930,5.9096,169.15,169.08,5.912]
[1747774114236,7.8592,169.17,169.06,15.6611296]
[1747774114439,1.9502,169.17,169.06,15.6611296]
[1747774114741,0.0433906,169.13,169.1,0.03788438]
[1747774114934,0.0433906,169.13,169.1,101.95788438]
[1747774115640,0.0433906,169.13,169.1,0.03788438]
[1747774116838,0.0433906,169.13,169.1,5.94898438]
[1747774117443,0.0433906,169.13,169.1,0.03788438]
[1747774119341,5.9109,169.12,169.1,0.03788438]
[1747774119547,0.0433906,169.13,169.05,101.92]
[1747774119847,101.9633906,169.13,168.97,1.2614]
[1747774120054,101.92,169.13,168.99,101.92]
[1747774120646,0.04511929,169.08,169.06,5.9127]
[1747774120841,0.04511929,169.08,169.05,0.04284864]
[1747774121642,0.04511929,169.08,168.99,101.92]
[1747774121942,8.06571929,169.08,169.02,5.9141]
[1747774122138,2.15351929,169.08,168.99,101.92]
[1747774122537,5.9124,169.07,169.02,0.04012489]
[1747774123037,2.15351929,169.08,169.02,0.04012489]
[1747774123354,104.07351929,169.08,169.02,0.04012489]
[1747774123657,104.07351929,169.08,168.88,1.31217678]
[1747774123658,5.914,169.03,168.97,5.9156]
[1747774123848,104.0284,169.08,168.95,101.92]
[1747774124654,0.04066804,169.03,169.0,0.03846279]
[1747774125953,0.04066804,169.03,169.01,5.9142]
[1747774126755,0.04066804,169.03,169.0,0.03846279]
[1747774127144,5.9147,169.01,168.96,1.47898149]
[1747774127341,101.98066804,169.03,168.93,101.94]
[1747774127545,101.94,169.03,168.93,101.94]
[1747774128048,0.04185826,169.0,168.96,0.04409984]
[1747774128346,0.04185826,169.0,168.96,5.96009984]
[1747774128545,0.04185826,169.0,168.96,0.04409984]
[1747774128750,0.04185826,169.0,168.97,5.9156]
[1747774129052,0.04185826,169.0,168.96,0.04409984]
[1747774129552,0.04185826,169.0,168.96,5.96019984]
[1747774129957,0.04185826,169.0,168.96,0.04409984]
[1747774132661,0.04185826,169.0,168.98,5.9153]
[1747774133952,0.04185826,169.0,168.99,5.9152]
[1747774134154,0.04185826,169.0,168.96,0.04409984]
[1747774134860,5.95685826,169.0,168.96,0.04409984]
[1747774135060,0.04185826,169.0,168.96,0.04409984]
[1747774136051,2.05945826,169.0,168.96,0.04409984]
[1747774136254,5.9156,168.98,168.96,0.04409984]
[1747774138766,5.9153,168.99,168.96,0.04409984]
[1747774139162,2.05945826,169.0,168.96,0.04409984]
[1747774139366,7.97455826,169.0,168.96,0.04409984]
[1747774141061,2.05945826,169.0,168.96,0.04409984]
[1747774141261,0.04185826,169.0,168.96,0.04409984]
[1747774141468,0.04185826,169.0,168.97,99.78]
[1747774141669,0.04185826,169.0,168.99,5.9152]
[1747774143577,99.78,169.08,168.97,99.78]
[1747774143773,12.0279,169.11,168.97,99.78]
[1747774144076,12.0279,169.11,169.06,5.9125]
[1747774144370,0.04436354,169.1,169.07,0.04277485]
[1747774144571,5.95576354,169.1,169.07,0.04277485]
[1747774144768,0.04436354,169.1,169.07,0.04277485]
[1747774146771,0.04436354,169.1,169.07,5.95507485]
[1747774147770,0.04436354,169.1,169.07,0.04277485]
[1747774148866,0.04436354,169.1,169.08,5.9118]
[1747774149364,0.04436354,169.1,169.07,0.04277485]
[1747774149969,0.04436354,169.1,169.09,5.9117]
[1747774153571,4.0075,169.19,169.07,99.80277485]
[1747774153776,4.0075,169.19,169.16,5.9092]
[1747774154072,1.9586,169.19,169.14,99.74]
[1747774154671,0.04321121,169.18,169.15,0.04204269]
[1747774155477,0.04321121,169.18,169.17,5.9089]
[1747774155664,0.04321121,169.18,169.15,0.04204269]
[1747774156583,0.04321121,169.18,169.15,5.95144269]
[1747774156779,0.04321121,169.18,169.15,0.04204269]
[1747774157177,4.0992,169.24,169.15,0.04204269]
[1747774157383,2.0297,169.27,169.16,15.6611296]
[1747774157587,3.9002,169.32,169.17,15.6611296]
[1747774157882,5.9299,169.32,169.16,99.9411296]
[1747774158081,5.9299,169.32,169.17,1.3038]
[1747774158282,0.04261224,169.25,169.21,0.04261562]
[1747774158482,0.04261224,169.25,169.22,99.72]
[1747774158988,0.04261224,169.25,169.24,5.9064]
[1747774159187,0.04261224,169.25,169.22,99.72]
[1747774159376,0.04261224,169.25,169.23,5.9065]
[1747774159581,0.04261224,169.25,169.22,99.72]
[1747774159884,0.04261224,169.25,169.24,5.9064]
[1747774163088,3.07055766,169.29,169.28,5.905]
[1747774163393,3.07055766,169.29,169.22,99.72]
[1747774163394,3.07055766,169.29,169.2,510.74]
[1747774163692,3.07055766,169.29,169.2,610.4]
[1747774164084,0.03295117,169.26,169.25,5.9059]
[1747774164794,0.03295117,169.26,169.25,105.5659]
[1747774165391,0.03295117,169.26,169.25,5.9059]
[1747774166492,0.03295117,169.26,169.23,0.03947448]
[1747774167094,5.9064,169.24,169.15,99.66]
[1747774167497,2.053,169.26,169.18,5.9082]
[1747774167696,2.053,169.26,169.15,99.66]
[1747774167995,2.053,169.26,169.19,5.9079]
[1747774168198,0.03876318,169.22,169.19,5.95075034]
[1747774168398,0.03876318,169.22,169.2,99.64]
[1747774169199,0.03876318,169.22,169.19,0.04285034]
[1747774169394,5.9077,169.21,169.19,0.04285034]
[1747774169589,0.03876318,169.22,169.16,99.64]
[1747774169808,0.03876318,169.22,169.12,100.64]
[1747774170087,100.64,169.21,169.13,5.9102]
[1747774170292,102.6054,169.2,169.13,5.9102]
[1747774170498,5.9091,169.17,169.12,100.64]
[1747774170696,0.04512573,169.16,169.13,0.04061424]
[1747774173001,5.95452573,169.16,169.13,0.04061424]
[1747774173201,0.04512573,169.16,169.13,0.04061424]
[1747774173604,5.95452573,169.16,169.13,0.04061424]
[1747774174602,5.9095,169.15,169.13,0.04061424]
[1747774174805,0.04512573,169.16,169.13,0.04061424]
[1747774174996,2.0986,169.15,169.08,100.66]
[1747774176106,2.0986,169.15,169.1,0.03978372]
[1747774176298,2.0986,169.15,169.12,5.9103]
[1747774176506,2.0986,169.15,169.1,0.03978372]
[1747774176800,8.0083,169.15,169.1,5.95098372]
[1747774177401,2.0986,169.15,169.12,5.9105]